[Event "Late-Titled-Tuesday-Blitz-May-14-2024"]
[Site "Chess.com"]
[Date "2024.05.14"]
[Round "5"]
[White "MarcoRiehle"]
[Black "mostafa_sakha"]
[Result "1/2-1/2"]
[WhiteElo "2794"]
[BlackElo "2386"]
[TimeControl "180+1"]
[EndTime "14:56:33 PDT"]
[Termination "Game drawn by repetition"]

1. e4 {[%clk 0:02:30.3]} 1... e5 {[%clk 0:02:59.6]} 2. Nf3 {[%clk 0:02:29.7]}
2... Nc6 {[%clk 0:02:59.7]} 3. Bc4 {[%clk 0:02:30.2]} 3... Nf6 {[%clk
0:02:59.7]} 4. d4 {[%clk 0:02:30.4]} 4... exd4 {[%clk 0:02:59.7]} 5. O-O {[%clk
0:02:30.9]} 5... Nxe4 {[%clk 0:02:59.7]} 6. Nc3 {[%clk 0:02:30.4]} 6... Nxc3
{[%clk 0:02:50.4]} 7. bxc3 {[%clk 0:02:30]} 7... d5 {[%clk 0:02:50.2]} 8. Bd3
{[%clk 0:02:29.6]} 8... Be7 {[%clk 0:02:42.4]} 9. Re1 {[%clk 0:02:29.2]} 9...
O-O {[%clk 0:02:39.6]} 10. cxd4 {[%clk 0:02:28.8]} 10... Bg4 {[%clk 0:02:37]}
11. c3 {[%clk 0:02:27.1]} 11... Bd6 {[%clk 0:02:31.4]} 12. h3 {[%clk 0:02:26.3]}
12... Bh5 {[%clk 0:02:29.5]} 13. a4 {[%clk 0:02:17.9]} 13... a5 {[%clk 0:02:28]}
14. Qc2 {[%clk 0:02:09.3]} 14... Bg6 {[%clk 0:02:26.6]} 15. Ne5 {[%clk 0:02:08]}
15... Nxe5 {[%clk 0:02:22.9]} 16. dxe5 {[%clk 0:02:07.9]} 16... Bc5 {[%clk
0:02:22.6]} 17. Be3 {[%clk 0:02:05.3]} 17... Bxe3 {[%clk 0:02:21.3]} 18. Rxe3
{[%clk 0:02:06.2]} 18... Bxd3 {[%clk 0:02:13.6]} 19. Qxd3 {[%clk 0:02:04.9]}
19... Qd7 {[%clk 0:02:11.8]} 20. f4 {[%clk 0:02:02.8]} 20... c5 {[%clk
0:02:08.2]} 21. f5 {[%clk 0:02:00.6]} 21... d4 {[%clk 0:02:02]} 22. cxd4 {[%clk
0:02:00.6]} 22... cxd4 {[%clk 0:02:01.7]} 23. Re4 {[%clk 0:01:59.7]} 23... Rad8
{[%clk 0:02:00.8]} 24. e6 {[%clk 0:01:57]} 24... fxe6 {[%clk 0:02:00.6]} 25.
fxe6 {[%clk 0:01:57.9]} 25... Qe7 {[%clk 0:02:00.7]} 26. Rae1 {[%clk 0:01:53.6]}
26... Rf6 {[%clk 0:01:45.6]} 27. Rxd4 {[%clk 0:01:49.9]} 27... Rxd4 {[%clk
0:01:44.5]} 28. Qxd4 {[%clk 0:01:46.8]} 28... Rxe6 {[%clk 0:01:43.8]} 29. Qd5
{[%clk 0:01:46.4]} 29... Kf7 {[%clk 0:01:38.4]} 30. Rxe6 {[%clk 0:01:46]} 30...
Qxe6 {[%clk 0:01:38]} 31. Qxb7+ {[%clk 0:01:46.5]} 31... Kg6 {[%clk 0:01:33.9]}
32. Qb1+ {[%clk 0:01:45.4]} 32... Qf5 {[%clk 0:01:31.5]} 33. Qb6+ {[%clk
0:01:44.4]} 33... Kg5 {[%clk 0:01:31.1]} 34. Qc7 {[%clk 0:01:39.2]} 34... Kh6
{[%clk 0:01:24.7]} 35. Kh2 {[%clk 0:01:37.7]} 35... g6 {[%clk 0:01:22.5]} 36.
Qd6 {[%clk 0:01:34.7]} 36... Kg7 {[%clk 0:01:13.2]} 37. Qd4+ {[%clk 0:01:26]}
37... Kf7 {[%clk 0:01:09.7]} 38. Kg3 {[%clk 0:01:25.7]} 38... h5 {[%clk
0:01:08.5]} 39. h4 {[%clk 0:01:20.6]} 39... Ke6 {[%clk 0:00:57.3]} 40. Qb6+
{[%clk 0:01:18.7]} 40... Kf7 {[%clk 0:00:56.7]} 41. Qc7+ {[%clk 0:01:16.7]}
41... Ke6 {[%clk 0:00:55.8]} 42. Qc8+ {[%clk 0:01:13.4]} 42... Kf6 {[%clk
0:00:55.5]} 43. Qf8+ {[%clk 0:01:12.7]} 43... Ke6 {[%clk 0:00:55.2]} 44. Qe8+
{[%clk 0:01:12.7]} 44... Kf6 {[%clk 0:00:55]} 45. Qd8+ {[%clk 0:01:13.1]} 45...
Ke6 {[%clk 0:00:54.6]} 46. Qd1 {[%clk 0:01:08.4]} 46... Qe5+ {[%clk 0:00:50]}
47. Kh3 {[%clk 0:01:08.4]} 47... Qc3+ {[%clk 0:00:30.5]} 48. g3 {[%clk
0:01:07.1]} 48... Qe5 {[%clk 0:00:28.1]} 49. Qb3+ {[%clk 0:01:06.6]} 49... Kf6
{[%clk 0:00:27.8]} 50. Qb6+ {[%clk 0:01:03.7]} 50... Kg7 {[%clk 0:00:26.6]} 51.
Qc6 {[%clk 0:00:54.4]} 51... Qf5+ {[%clk 0:00:26.1]} 52. Kg2 {[%clk 0:00:54.4]}
52... Qe5 {[%clk 0:00:25.4]} 53. Qd7+ {[%clk 0:00:52]} 53... Kf6 {[%clk
0:00:25]} 54. Qc6+ {[%clk 0:00:49.3]} 54... Kg7 {[%clk 0:00:24.7]} 55. Qc2
{[%clk 0:00:46.5]} 55... Kf6 {[%clk 0:00:23.8]} 56. Qc4 {[%clk 0:00:35]} 56...
Kg7 {[%clk 0:00:23.5]} 57. Kf3 {[%clk 0:00:34.5]} 57... Kf6 {[%clk 0:00:23]} 58.
Qc6+ {[%clk 0:00:33.7]} 58... Kg7 {[%clk 0:00:23]} 59. Qe4 {[%clk 0:00:29.5]}
59... Qc3+ {[%clk 0:00:22.2]} 60. Ke2 {[%clk 0:00:27.8]} 60... Qxg3 {[%clk
0:00:20.2]} 61. Qe7+ {[%clk 0:00:27.8]} 61... Kh6 {[%clk 0:00:19.8]} 62. Qf8+
{[%clk 0:00:25.5]} 62... Kh7 {[%clk 0:00:19.7]} 63. Qe7+ {[%clk 0:00:25.6]}
63... Kh6 {[%clk 0:00:19.8]} 64. Qf8+ {[%clk 0:00:24.6]} 64... Kh7 {[%clk
0:00:19.8]} 65. Qe7+ {[%clk 0:00:25]} 65... Kh6 {[%clk 0:00:20.1]} 1/2-1/2

[Event "Late-Titled-Tuesday-Blitz-May-14-2024"]
[Site "Chess.com"]
[Date "2024.05.14"]
[Round "5"]
[White "djano"]
[Black "MyDream003"]
[Result "0-1"]
[WhiteElo "2534"]
[BlackElo "2834"]
[TimeControl "180+1"]
[EndTime "14:56:33 PDT"]
[Termination "MyDream003 won on time"]

1. e4 {[%clk 0:03:00.9]} 1... c6 {[%clk 0:02:58.9]} 2. d4 {[%clk 0:02:58.9]}
2... d5 {[%clk 0:02:59]} 3. exd5 {[%clk 0:02:59.8]} 3... cxd5 {[%clk 0:02:59.2]}
4. c4 {[%clk 0:03:00.3]} 4... Nf6 {[%clk 0:02:58.9]} 5. Nc3 {[%clk 0:02:59.9]}
5... e6 {[%clk 0:02:59.4]} 6. Nf3 {[%clk 0:02:59.6]} 6... Be7 {[%clk 0:02:59.2]}
7. cxd5 {[%clk 0:02:58.5]} 7... Nxd5 {[%clk 0:02:58.4]} 8. Bd3 {[%clk
0:02:58.7]} 8... O-O {[%clk 0:02:58.5]} 9. O-O {[%clk 0:02:58.9]} 9... Nc6
{[%clk 0:02:58.6]} 10. Qe2 {[%clk 0:02:56.1]} 10... Bf6 {[%clk 0:02:51.8]} 11.
Ne4 {[%clk 0:02:54.5]} 11... h6 {[%clk 0:02:41.8]} 12. Nxf6+ {[%clk 0:02:49.2]}
12... Nxf6 {[%clk 0:02:42.7]} 13. Rd1 {[%clk 0:02:47.1]} 13... b6 {[%clk
0:02:41.9]} 14. Be3 {[%clk 0:02:31]} 14... Bb7 {[%clk 0:02:41.7]} 15. Rac1
{[%clk 0:02:28.5]} 15... Rc8 {[%clk 0:02:42]} 16. a3 {[%clk 0:02:26.5]} 16...
Ne7 {[%clk 0:02:30.7]} 17. Bb1 {[%clk 0:02:15.1]} 17... Rxc1 {[%clk 0:02:26.7]}
18. Bxc1 {[%clk 0:02:10.6]} 18... Qa8 {[%clk 0:02:22.3]} 19. Ne1 {[%clk
0:02:00.4]} 19... Rc8 {[%clk 0:02:21.5]} 20. Bf4 {[%clk 0:01:56.9]} 20... Be4
{[%clk 0:02:10.6]} 21. Ba2 {[%clk 0:01:57.2]} 21... Ng6 {[%clk 0:02:08.9]} 22.
Bg3 {[%clk 0:01:56.5]} 22... Qb7 {[%clk 0:02:04.5]} 23. h4 {[%clk 0:01:53.8]}
23... Ne7 {[%clk 0:02:02.3]} 24. Be5 {[%clk 0:01:50.6]} 24... Nd7 {[%clk
0:02:00.4]} 25. Bh2 {[%clk 0:01:45.3]} 25... Nf5 {[%clk 0:01:58]} 26. h5 {[%clk
0:01:43.5]} 26... Nf6 {[%clk 0:01:56.2]} 27. Be5 {[%clk 0:01:41.3]} 27... Nd7
{[%clk 0:01:56.5]} 28. Bh2 {[%clk 0:01:40.5]} 28... a5 {[%clk 0:01:53.2]} 29.
Bf4 {[%clk 0:01:22.6]} 29... a4 {[%clk 0:01:50.8]} 30. Qg4 {[%clk 0:01:12.3]}
30... Nf6 {[%clk 0:01:50.2]} 31. Qe2 {[%clk 0:01:10.5]} 31... Rd8 {[%clk
0:01:42]} 32. Be5 {[%clk 0:01:09.9]} 32... Nd7 {[%clk 0:01:41.8]} 33. Bh2 {[%clk
0:01:09.6]} 33... Nf8 {[%clk 0:01:35.2]} 34. Be5 {[%clk 0:01:07.8]} 34... Kh8
{[%clk 0:01:27.6]} 35. Qg4 {[%clk 0:01:07.4]} 35... f6 {[%clk 0:01:25]} 36. Bh2
{[%clk 0:01:06.7]} 36... Nxd4 {[%clk 0:01:16.9]} 37. Rc1 {[%clk 0:00:50.3]}
37... Bf5 {[%clk 0:01:12.6]} 38. Qd1 {[%clk 0:00:43.8]} 38... e5 {[%clk
0:01:12.5]} 39. Kh1 {[%clk 0:00:35.5]} 39... b5 {[%clk 0:01:12.3]} 40. f4 {[%clk
0:00:31.4]} 40... Nfe6 {[%clk 0:01:10.4]} 41. fxe5 {[%clk 0:00:31.4]} 41... Nb3
{[%clk 0:01:04.7]} 42. Bxb3 {[%clk 0:00:20.8]} 42... Rxd1 {[%clk 0:01:04]} 43.
Bxd1 {[%clk 0:00:21.7]} 43... fxe5 {[%clk 0:00:59.7]} 44. Bxe5 {[%clk
0:00:22.6]} 44... Qe4 {[%clk 0:00:53.9]} 45. Nf3 {[%clk 0:00:22.4]} 45... Qd5
{[%clk 0:00:49.3]} 46. Be2 {[%clk 0:00:18.9]} 46... Kh7 {[%clk 0:00:48.1]} 47.
Bc3 {[%clk 0:00:17.3]} 47... Nf4 {[%clk 0:00:47.2]} 48. Bf1 {[%clk 0:00:14.1]}
48... Be4 {[%clk 0:00:45.1]} 49. Nh4 {[%clk 0:00:08.8]} 49... Qxh5 {[%clk
0:00:42.3]} 50. Be1 {[%clk 0:00:06.7]} 50... Bd3 {[%clk 0:00:34.8]} 51. Kg1
{[%clk 0:00:02.2]} 51... Bxf1 {[%clk 0:00:34.3]} 52. Kh1 {[%clk 0:00:03.1]}
52... Bxg2+ {[%clk 0:00:33.8]} 53. Kg1 {[%clk 0:00:04]} 53... Be4 {[%clk
0:00:33.4]} 54. Bg3 {[%clk 0:00:03.6]} 54... Ne2+ {[%clk 0:00:32.7]} 0-1

[Event "Late-Titled-Tuesday-Blitz-May-14-2024"]
[Site "Chess.com"]
[Date "2024.05.14"]
[Round "5"]
[White "betta2004"]
[Black "Dhaydon19"]
[Result "1/2-1/2"]
[WhiteElo "2530"]
[BlackElo "2723"]
[TimeControl "180+1"]
[EndTime "14:56:33 PDT"]
[Termination "Game drawn by stalemate"]

1. Nf3 {[%clk 0:03:00.2]} 1... Nf6 {[%clk 0:03:00.1]} 2. e3 {[%clk 0:02:59.9]}
2... b6 {[%clk 0:03:00.4]} 3. b3 {[%clk 0:03:00.1]} 3... Bb7 {[%clk 0:03:01.1]}
4. Bb2 {[%clk 0:03:00.7]} 4... e6 {[%clk 0:03:01.8]} 5. d4 {[%clk 0:03:01.2]}
5... Be7 {[%clk 0:03:02.3]} 6. Nbd2 {[%clk 0:03:01.6]} 6... O-O {[%clk
0:03:03.1]} 7. Bd3 {[%clk 0:03:02.2]} 7... c5 {[%clk 0:03:04]} 8. O-O {[%clk
0:03:02.3]} 8... cxd4 {[%clk 0:03:03.9]} 9. exd4 {[%clk 0:03:02.3]} 9... Nc6
{[%clk 0:03:04.5]} 10. c4 {[%clk 0:03:01.4]} 10... Rc8 {[%clk 0:03:03.9]} 11.
Qe2 {[%clk 0:02:55.4]} 11... d5 {[%clk 0:03:03.8]} 12. Ne5 {[%clk 0:02:54.8]}
12... dxc4 {[%clk 0:03:02.5]} 13. Nxc6 {[%clk 0:02:49.6]} 13... Bxc6 {[%clk
0:02:54.8]} 14. bxc4 {[%clk 0:02:48.2]} 14... Re8 {[%clk 0:02:52.3]} 15. Ne4
{[%clk 0:02:47.6]} 15... Bxe4 {[%clk 0:02:50.1]} 16. Bxe4 {[%clk 0:02:48]} 16...
Nxe4 {[%clk 0:02:50.8]} 17. Qxe4 {[%clk 0:02:48.9]} 17... Rxc4 {[%clk
0:02:50.4]} 18. Rac1 {[%clk 0:02:48.7]} 18... Qd5 {[%clk 0:02:41.6]} 19. Qg4
{[%clk 0:02:43.7]} 19... Rec8 {[%clk 0:02:37.9]} 20. Rxc4 {[%clk 0:02:39.8]}
20... Rxc4 {[%clk 0:02:38.3]} 21. h3 {[%clk 0:02:36.7]} 21... h5 {[%clk
0:02:34]} 22. Qf4 {[%clk 0:02:19]} 22... Bd6 {[%clk 0:02:30.4]} 23. Qh4 {[%clk
0:02:15.8]} 23... Rc2 {[%clk 0:02:25.1]} 24. Bc1 {[%clk 0:01:51.3]} 24... Rxa2
{[%clk 0:02:19.6]} 25. Bg5 {[%clk 0:01:51.7]} 25... Ra4 {[%clk 0:02:08.3]} 26.
Rc1 {[%clk 0:01:49]} 26... Rc4 {[%clk 0:02:06.1]} 27. Rd1 {[%clk 0:01:46]} 27...
b5 {[%clk 0:01:59.6]} 28. Qxh5 {[%clk 0:01:45.1]} 28... Rxd4 {[%clk 0:01:55.5]}
29. Rc1 {[%clk 0:01:43.2]} 29... Rc4 {[%clk 0:01:48.8]} 30. Rd1 {[%clk
0:01:43.6]} 30... Qc6 {[%clk 0:01:44.3]} 31. Be3 {[%clk 0:01:39.1]} 31... a5
{[%clk 0:01:38.9]} 32. Qg5 {[%clk 0:01:39.7]} 32... Bf8 {[%clk 0:01:37.7]} 33.
Qd8 {[%clk 0:01:36.2]} 33... a4 {[%clk 0:01:33.8]} 34. Qb8 {[%clk 0:01:36.3]}
34... b4 {[%clk 0:01:11.7]} 35. Rd8 {[%clk 0:01:35.2]} 35... Rc1+ {[%clk
0:01:06.6]} 36. Bxc1 {[%clk 0:01:34.9]} 36... Qxc1+ {[%clk 0:01:07.2]} 37. Kh2
{[%clk 0:01:35.6]} 37... Qc5 {[%clk 0:01:07.3]} 38. Qa8 {[%clk 0:01:29.4]} 38...
b3 {[%clk 0:01:04.9]} 39. Rb8 {[%clk 0:01:25.5]} 39... b2 {[%clk 0:01:02.6]} 40.
f4 {[%clk 0:01:19.4]} 40... Qd6 {[%clk 0:00:58.1]} 41. Rxb2 {[%clk 0:01:14.4]}
41... Qxf4+ {[%clk 0:00:57.9]} 42. g3 {[%clk 0:01:14.5]} 42... Qd4 {[%clk
0:00:54.2]} 43. Ra2 {[%clk 0:01:14]} 43... a3 {[%clk 0:00:52.9]} 44. h4 {[%clk
0:01:05.6]} 44... g6 {[%clk 0:00:52.2]} 45. Kh3 {[%clk 0:01:05.1]} 45... Qb4
{[%clk 0:00:40.3]} 46. Rf2 {[%clk 0:00:52.8]} 46... Qc5 {[%clk 0:00:32.8]} 47.
Qf3 {[%clk 0:00:51.4]} 47... Qf5+ {[%clk 0:00:32.8]} 48. Qxf5 {[%clk 0:00:49.5]}
48... exf5 {[%clk 0:00:33.4]} 49. g4 {[%clk 0:00:38.2]} 49... fxg4+ {[%clk
0:00:33.2]} 50. Kxg4 {[%clk 0:00:39.1]} 50... Bg7 {[%clk 0:00:32.1]} 51. Ra2
{[%clk 0:00:36.7]} 51... Bb2 {[%clk 0:00:32]} 52. h5 {[%clk 0:00:34.3]} 52...
Kg7 {[%clk 0:00:30.8]} 53. hxg6 {[%clk 0:00:33.9]} 53... Kxg6 {[%clk 0:00:30.7]}
54. Kf4 {[%clk 0:00:34.3]} 54... f5 {[%clk 0:00:31.3]} 55. Kf3 {[%clk
0:00:34.4]} 55... Kf6 {[%clk 0:00:31.6]} 56. Kf4 {[%clk 0:00:34.6]} 56... Ke6
{[%clk 0:00:32.3]} 57. Ke3 {[%clk 0:00:34.4]} 57... Ke5 {[%clk 0:00:33]} 58. Kf3
{[%clk 0:00:34.6]} 58... f4 {[%clk 0:00:33.6]} 59. Kf2 {[%clk 0:00:35]} 59...
Kf5 {[%clk 0:00:34.3]} 60. Kf3 {[%clk 0:00:35.4]} 60... Kg5 {[%clk 0:00:35]} 61.
Kg2 {[%clk 0:00:35.9]} 61... Kg4 {[%clk 0:00:35.7]} 62. Kf2 {[%clk 0:00:36.5]}
62... f3 {[%clk 0:00:36.2]} 63. Kf1 {[%clk 0:00:37]} 63... Kf4 {[%clk
0:00:36.4]} 64. Kf2 {[%clk 0:00:37.3]} 64... Ke4 {[%clk 0:00:36.7]} 65. Kf1
{[%clk 0:00:36.5]} 65... Ke3 {[%clk 0:00:37.1]} 66. Ke1 {[%clk 0:00:36.9]} 66...
f2+ {[%clk 0:00:37.5]} 67. Kf1 {[%clk 0:00:37.5]} 67... Bc1 {[%clk 0:00:27.8]}
68. Ra1 {[%clk 0:00:26.2]} 68... Bb2 {[%clk 0:00:25.5]} 69. Ra2 {[%clk
0:00:26.6]} 69... Kf3 {[%clk 0:00:24.8]} 70. Rxa3+ {[%clk 0:00:25.1]} 70... Bxa3
{[%clk 0:00:23.1]} 1/2-1/2

[Event "Late-Titled-Tuesday-Blitz-May-14-2024"]
[Site "Chess.com"]
[Date "2024.05.14"]
[Round "5"]
[White "Kosak12"]
[Black "lachesisQ"]
[Result "0-1"]
[WhiteElo "2766"]
[BlackElo "3107"]
[TimeControl "180+1"]
[EndTime "14:56:34 PDT"]
[Termination "lachesisQ won on time"]

1. e4 {[%clk 0:02:59.3]} 1... Nf6 {[%clk 0:03:00.9]} 2. e5 {[%clk 0:02:59.2]}
2... Nd5 {[%clk 0:03:01]} 3. d4 {[%clk 0:02:58.5]} 3... d6 {[%clk 0:03:01.5]} 4.
Nf3 {[%clk 0:02:57.4]} 4... dxe5 {[%clk 0:03:01.9]} 5. Nxe5 {[%clk 0:02:57.6]}
5... g6 {[%clk 0:03:02.5]} 6. Be2 {[%clk 0:02:56.5]} 6... Bg7 {[%clk 0:03:02.4]}
7. O-O {[%clk 0:02:56.5]} 7... O-O {[%clk 0:03:02.5]} 8. Nf3 {[%clk 0:02:54.5]}
8... c5 {[%clk 0:02:57.2]} 9. c4 {[%clk 0:02:36.1]} 9... Nc7 {[%clk 0:02:51]}
10. dxc5 {[%clk 0:02:30.9]} 10... Ne6 {[%clk 0:02:49.3]} 11. Nc3 {[%clk
0:02:29.8]} 11... Nxc5 {[%clk 0:02:48.8]} 12. Be3 {[%clk 0:02:29.6]} 12... b6
{[%clk 0:02:43.8]} 13. Rc1 {[%clk 0:02:16.4]} 13... Nc6 {[%clk 0:02:40.6]} 14.
a3 {[%clk 0:02:08.2]} 14... Bf5 {[%clk 0:02:40.1]} 15. Qxd8 {[%clk 0:01:21.9]}
15... Rfxd8 {[%clk 0:02:38.5]} 16. Rfd1 {[%clk 0:01:22.6]} 16... Nd3 {[%clk
0:02:31.5]} 17. Bxd3 {[%clk 0:01:21.8]} 17... Rxd3 {[%clk 0:02:29.3]} 18. Rxd3
{[%clk 0:01:15.1]} 18... Bxd3 {[%clk 0:02:30.2]} 19. b3 {[%clk 0:01:14.8]} 19...
Na5 {[%clk 0:02:27.4]} 20. Nd2 {[%clk 0:01:10.9]} 20... e6 {[%clk 0:02:25.8]}
21. f3 {[%clk 0:01:10.3]} 21... f5 {[%clk 0:02:21.3]} 22. Kf2 {[%clk 0:01:10]}
22... Kf7 {[%clk 0:02:21.5]} 23. Nb5 {[%clk 0:01:09.4]} 23... Bb2 {[%clk
0:02:17.2]} 24. Re1 {[%clk 0:01:04.9]} 24... Nb7 {[%clk 0:02:00.7]} 25. Nc7
{[%clk 0:01:02]} 25... Rc8 {[%clk 0:01:52.3]} 26. Nxe6 {[%clk 0:01:01.8]} 26...
Bxa3 {[%clk 0:01:49.5]} 27. Ng5+ {[%clk 0:01:00.7]} 27... Kg8 {[%clk 0:01:48.2]}
28. Ra1 {[%clk 0:00:56.1]} 28... Bb4 {[%clk 0:01:15]} 29. Rxa7 {[%clk
0:00:55.3]} 29... Rc7 {[%clk 0:01:15.2]} 30. Bxb6 {[%clk 0:00:47.6]} 30... Rd7
{[%clk 0:01:12.1]} 31. Ra8+ {[%clk 0:00:34.1]} 31... Kg7 {[%clk 0:01:11]} 32.
Bd4+ {[%clk 0:00:26.4]} 32... Rxd4 {[%clk 0:01:01.7]} 33. Ne6+ {[%clk
0:00:26.4]} 33... Kf6 {[%clk 0:01:02.3]} 34. Nxd4 {[%clk 0:00:27.1]} 34... Bxd2
{[%clk 0:01:03]} 35. Ra7 {[%clk 0:00:26.2]} 35... Nc5 {[%clk 0:00:59.8]} 36.
Rxh7 {[%clk 0:00:25.7]} 36... f4 {[%clk 0:00:57.6]} 37. Nb5 {[%clk 0:00:19.4]}
37... Nxb3 {[%clk 0:00:55.8]} 38. Nd6 {[%clk 0:00:17.7]} 38... Be3+ {[%clk
0:00:53.2]} 39. Ke1 {[%clk 0:00:17.6]} 39... Nd4 {[%clk 0:00:54]} 40. Ne8+
{[%clk 0:00:10.4]} 40... Kg5 {[%clk 0:00:47.8]} 41. h4+ {[%clk 0:00:10.3]} 41...
Kf5 {[%clk 0:00:48.3]} 42. Nd6+ {[%clk 0:00:06.5]} 42... Ke6 {[%clk 0:00:47.6]}
43. Ne4 {[%clk 0:00:04.7]} 43... Bxc4 {[%clk 0:00:46.9]} 44. h5 {[%clk
0:00:03.3]} 44... gxh5 {[%clk 0:00:44.5]} 45. Rh6+ {[%clk 0:00:03.7]} 45... Ke7
{[%clk 0:00:43.4]} 46. Rxh5 {[%clk 0:00:04.1]} 46... Bd3 {[%clk 0:00:40.4]} 47.
Re5+ {[%clk 0:00:04.2]} 47... Kf7 {[%clk 0:00:36.3]} 48. Rd5 {[%clk 0:00:04]}
48... Kg7 {[%clk 0:00:31.2]} 49. Rd7+ {[%clk 0:00:03]} 49... Kg6 {[%clk
0:00:27.9]} 50. Rd5 {[%clk 0:00:03.9]} 50... Bc4 {[%clk 0:00:27.3]} 51. Rd6+
{[%clk 0:00:04.1]} 51... Kg7 {[%clk 0:00:27.9]} 52. Rd7+ {[%clk 0:00:04.2]}
52... Kg6 {[%clk 0:00:26.4]} 53. Rd6+ {[%clk 0:00:04.5]} 53... Kf5 {[%clk
0:00:26.7]} 54. Rxd4 {[%clk 0:00:04.8]} 54... Bxd4 {[%clk 0:00:24]} 55. Nd6+
{[%clk 0:00:04.9]} 55... Kg5 {[%clk 0:00:23.8]} 56. Nxc4 {[%clk 0:00:05.8]}
56... Kh4 {[%clk 0:00:22.7]} 57. Nd2 {[%clk 0:00:05.8]} 57... Bc3 {[%clk
0:00:20.8]} 58. Ke2 {[%clk 0:00:05.4]} 58... Bxd2 {[%clk 0:00:19]} 59. Kxd2
{[%clk 0:00:02.2]} 59... Kg3 {[%clk 0:00:19.3]} 0-1

[Event "Late-Titled-Tuesday-Blitz-May-14-2024"]
[Site "Chess.com"]
[Date "2024.05.14"]
[Round "5"]
[White "platy3"]
[Black "Evan_Attaker"]
[Result "1-0"]
[WhiteElo "2891"]
[BlackElo "2655"]
[TimeControl "180+1"]
[EndTime "14:56:37 PDT"]
[Termination "platy3 won by checkmate"]

1. e4 {[%clk 0:02:55.4]} 1... d6 {[%clk 0:02:59.7]} 2. d4 {[%clk 0:02:52.1]}
2... g6 {[%clk 0:03:00.3]} 3. Nc3 {[%clk 0:02:52.8]} 3... Bg7 {[%clk 0:03:00.8]}
4. Be3 {[%clk 0:02:49.6]} 4... Nf6 {[%clk 0:03:00.6]} 5. Nf3 {[%clk 0:02:44.8]}
5... c6 {[%clk 0:02:59.7]} 6. a4 {[%clk 0:02:44.4]} 6... O-O {[%clk 0:02:51.5]}
7. Be2 {[%clk 0:02:43.7]} 7... Nbd7 {[%clk 0:02:47.3]} 8. O-O {[%clk 0:02:41.5]}
8... e5 {[%clk 0:02:47.4]} 9. d5 {[%clk 0:02:39.6]} 9... cxd5 {[%clk 0:02:46.5]}
10. exd5 {[%clk 0:02:36.9]} 10... Ne8 {[%clk 0:02:45.5]} 11. Nb5 {[%clk
0:02:29]} 11... a6 {[%clk 0:02:42.4]} 12. Na7 {[%clk 0:02:28.3]} 12... h6 {[%clk
0:02:31]} 13. Nd2 {[%clk 0:02:16.9]} 13... f5 {[%clk 0:02:25.1]} 14. Nxc8 {[%clk
0:02:12]} 14... Rxc8 {[%clk 0:02:24.3]} 15. Nc4 {[%clk 0:02:07.2]} 15... f4
{[%clk 0:02:16.3]} 16. Bd2 {[%clk 0:02:07]} 16... e4 {[%clk 0:02:14.8]} 17. b3
{[%clk 0:02:03.6]} 17... b5 {[%clk 0:01:31.4]} 18. axb5 {[%clk 0:01:47.4]} 18...
axb5 {[%clk 0:01:32.3]} 19. Na5 {[%clk 0:01:22.1]} 19... Bxa1 {[%clk 0:01:28.7]}
20. Nc6 {[%clk 0:01:19]} 20... Qh4 {[%clk 0:01:09.5]} 21. g3 {[%clk 0:01:07.7]}
21... Qg5 {[%clk 0:00:28.1]} 22. Qxa1 {[%clk 0:01:03.7]} 22... e3 {[%clk
0:00:28.5]} 23. h4 {[%clk 0:00:54.2]} 23... exf2+ {[%clk 0:00:27.7]} 24. Rxf2
{[%clk 0:00:54.4]} 24... Qxg3+ {[%clk 0:00:21.8]} 25. Rg2 {[%clk 0:00:54.6]}
25... Qxh4 {[%clk 0:00:22.3]} 26. Rxg6+ {[%clk 0:00:44.1]} 26... Kf7 {[%clk
0:00:22.5]} 27. Be1 {[%clk 0:00:27.3]} 27... Qh3 {[%clk 0:00:18.5]} 28. Bg4
{[%clk 0:00:27.3]} 28... Qe3+ {[%clk 0:00:18.2]} 29. Bf2 {[%clk 0:00:27.7]}
29... Qe4 {[%clk 0:00:13.5]} 30. Re6 {[%clk 0:00:20.5]} 30... Qxd5 {[%clk
0:00:12.6]} 31. Re7+ {[%clk 0:00:20.4]} 31... Kg6 {[%clk 0:00:13.2]} 32. Rg7+
{[%clk 0:00:11.3]} 32... Nxg7 {[%clk 0:00:12.5]} 33. Ne7+ {[%clk 0:00:12]} 33...
Kf7 {[%clk 0:00:12.4]} 34. Nxd5 {[%clk 0:00:12.1]} 34... Ne5 {[%clk 0:00:12.8]}
35. Bxc8 {[%clk 0:00:11.6]} 35... Rxc8 {[%clk 0:00:13.7]} 36. Qa7+ {[%clk
0:00:11.1]} 36... Ke6 {[%clk 0:00:11.8]} 37. Nxf4+ {[%clk 0:00:09.6]} 37... Kf5
{[%clk 0:00:11.7]} 38. Qxg7 {[%clk 0:00:08.6]} 38... Kxf4 {[%clk 0:00:11.4]} 39.
Qxh6+ {[%clk 0:00:07.8]} 39... Ke4 {[%clk 0:00:11.9]} 40. Qxd6 {[%clk
0:00:03.2]} 40... Rxc2 {[%clk 0:00:10.6]} 41. Qd4+ {[%clk 0:00:03.2]} 41... Kf5
{[%clk 0:00:10.1]} 42. Kf1 {[%clk 0:00:03.9]} 42... Rc1+ {[%clk 0:00:09.4]} 43.
Kg2 {[%clk 0:00:04.1]} 43... Rc2 {[%clk 0:00:09.6]} 44. Qd5 {[%clk 0:00:04.5]}
44... Rb2 {[%clk 0:00:07.2]} 45. Kf1 {[%clk 0:00:03.1]} 45... Rb1+ {[%clk
0:00:07.6]} 46. Ke2 {[%clk 0:00:03.2]} 46... Rb2+ {[%clk 0:00:07.7]} 47. Ke3
{[%clk 0:00:03.2]} 47... Rb1 {[%clk 0:00:05.7]} 48. Bg3 {[%clk 0:00:03]} 48...
Kg4 {[%clk 0:00:03.2]} 49. Bxe5 {[%clk 0:00:03.1]} 49... b4 {[%clk 0:00:03.2]}
50. Qe4+ {[%clk 0:00:03.1]} 50... Kh3 {[%clk 0:00:03.4]} 51. Qxb1 {[%clk
0:00:04]} 51... Kg2 {[%clk 0:00:02.5]} 52. Qc2+ {[%clk 0:00:04.1]} 52... Kf1
{[%clk 0:00:03.4]} 53. Qf2# {[%clk 0:00:04.4]} 1-0